[Event "Titled Tuesday Blitz July 11 Early 2023"]
[White "Chemin, Justo Reinaldo"]
[Black "Matyukov, Petr"]
[WhiteFideId "2101580"]
[BlackFideId "4103688"]
[WhiteElo "2245"]
[BlackElo "2488"]
[Result "0-1"]
[Round "2"]
[TimeControl "180+2"]
[Date "2023.07.11"]
[WhiteClock "0:00:00"]
[BlackClock "0:00:04"]
[Board "187"]

1. d4 {[%clk 0:02:13]}  Nf6 {[%clk 0:02:58]} 2. c3 {[%clk 0:02:12]}  c5 {[%clk 0:02:55]} 3. Nf3 {[%clk 0:02:12]}  g6 {[%clk 0:02:55]} 4. Bf4 {[%clk 0:02:11]}  Bg7 {[%clk 0:02:54]} 5. Nbd2 {[%clk 0:02:11]}  O-O {[%clk 0:02:53]} 6. e3 {[%clk 0:02:11]}  b6 {[%clk 0:02:51]} 7. h3 {[%clk 0:02:11]}  Bb7 {[%clk 0:02:51]} 8. Be2 {[%clk 0:02:04]}  d6 {[%clk 0:02:50]} 9. O-O {[%clk 0:02:04]}  Nbd7 {[%clk 0:02:50]} 10. a4 {[%clk 0:02:02]}  a6 {[%clk 0:02:47]} 11. Bh2 {[%clk 0:01:58]}  Rc8 {[%clk 0:02:44]} 12. b4 {[%clk 0:01:48]}  Qc7 {[%clk 0:02:39]} 13. b5 {[%clk 0:01:44]}  Ra8 {[%clk 0:02:31]} 14. Qb3 {[%clk 0:01:31]}  Rfc8 {[%clk 0:02:01]} 15. c4 {[%clk 0:01:17]}  Ne4 {[%clk 0:01:49]} 16. Nxe4 {[%clk 0:01:11]}  Bxe4 {[%clk 0:01:50]} 17. Rad1 {[%clk 0:01:08]}  axb5 {[%clk 0:01:38]} 18. axb5 {[%clk 0:01:06]}  Qa7 {[%clk 0:01:17]} 19. Ng5 {[%clk 0:00:59]}  Bb7 {[%clk 0:01:03]} 20. d5 {[%clk 0:00:55]}  h6 {[%clk 0:01:01]} 21. Ne4 {[%clk 0:00:46]}  Qa2 {[%clk 0:00:59]} 22. Qxa2 {[%clk 0:00:43]}  Rxa2 {[%clk 0:00:59]} 23. Bf3 {[%clk 0:00:42]}  Ne5 {[%clk 0:00:56]} 24. Bxe5 {[%clk 0:00:37]}  Bxe5 {[%clk 0:00:57]} 25. Rc1 {[%clk 0:00:37]}  Rca8 {[%clk 0:00:53]} 26. g4 {[%clk 0:00:34]}  R8a4 {[%clk 0:00:46]} 27. Kg2 {[%clk 0:00:30]}  Bc8 {[%clk 0:00:44]} 28. Ng3 {[%clk 0:00:30]}  e6 {[%clk 0:00:29]} 29. Bd1 {[%clk 0:00:29]}  Rb4 {[%clk 0:00:24]} 30. e4 {[%clk 0:00:30]}  Rd2 {[%clk 0:00:20]} 31. Ne2 {[%clk 0:00:28]}  exd5 {[%clk 0:00:17]} 32. exd5 {[%clk 0:00:26]}  f5 {[%clk 0:00:17]} 33. f4 {[%clk 0:00:26]}  Bb2 {[%clk 0:00:16]} 34. Rb1 {[%clk 0:00:24]}  fxg4 {[%clk 0:00:16]} 35. hxg4 {[%clk 0:00:23]}  Bxg4 {[%clk 0:00:17]} 36. Kf2 {[%clk 0:00:22]}  Rxc4 {[%clk 0:00:17]} 37. Ke3 {[%clk 0:00:21]}  Bc1 {[%clk 0:00:08]} 38. Rxc1 {[%clk 0:00:19]}  Rxc1 {[%clk 0:00:03]} 39. Nxc1 {[%clk 0:00:19]}  Rxd1 {[%clk 0:00:03]} 40. Rxd1 {[%clk 0:00:18]}  Bxd1 {[%clk 0:00:04]} 41. Nd3 {[%clk 0:00:17]}  Ba4 {[%clk 0:00:04]} 42. Nf2 {[%clk 0:00:16]}  Bxb5 {[%clk 0:00:05]} 43. Ne4 {[%clk 0:00:17]}  Be8 {[%clk 0:00:05]} 44. Nxd6 {[%clk 0:00:17]}  Kf8 {[%clk 0:00:05]} 45. Nc4 {[%clk 0:00:16]}  b5 {[%clk 0:00:05]} 46. Ne5 {[%clk 0:00:16]}  Ke7 {[%clk 0:00:05]} 47. Nd3 {[%clk 0:00:15]}  Kd6 {[%clk 0:00:05]} 48. Ke4 {[%clk 0:00:13]}  g5 {[%clk 0:00:05]} 49. f5 {[%clk 0:00:12]}  Bd7 {[%clk 0:00:05]} 50. Ne5 {[%clk 0:00:12]}  c4 {[%clk 0:00:04]} 51. Nf7+ {[%clk 0:00:12]}  Kc5 {[%clk 0:00:04]} 52. Nxh6 {[%clk 0:00:11]}  c3 {[%clk 0:00:04]} 53. f6 {[%clk 0:00:11]}  Be8 {[%clk 0:00:04]} 54. Nf5 {[%clk 0:00:10]}  c2 {[%clk 0:00:04]} 55. Ng7 {[%clk 0:00:10]}  Bg6+ {[%clk 0:00:03]} 56. Ke5 {[%clk 0:00:09]}  c1=Q {[%clk 0:00:04]} 57. Ne6+ {[%clk 0:00:08]}  Kb4 {[%clk 0:00:03]} 58. Kd6 {[%clk 0:00:07]}  Qe3 {[%clk 0:00:04]} 59. Ke7 {[%clk 0:00:06]}  g4 {[%clk 0:00:03]} 60. f7 {[%clk 0:00:05]}  Bxf7 {[%clk 0:00:03]} 61. Kxf7 {[%clk 0:00:05]}  g3 {[%clk 0:00:04]} 62. d6 {[%clk 0:00:03]}  Qd3 {[%clk 0:00:04]} 63. Ke7 {[%clk 0:00:01]}  g2 {[%clk 0:00:04]} 64. Nf4 {[%clk 0:00:00]}  Qxd6+ {[%clk 0:00:04]} 0-1


[Site "https://www.chess.com"]

[Event "Titled Tuesday Blitz July 11 Early 2023"]
[White "Kovacsy, Barnabas"]
[Black "Sarkar, Justin"]
[WhiteFideId "769290"]
[BlackFideId "2010011"]
[WhiteElo "2487"]
[BlackElo "2243"]
[Result "1/2-1/2"]
[Round "2"]
[TimeControl "180+2"]
[Date "2023.07.11"]
[WhiteClock "0:01:03"]
[BlackClock "0:01:02"]
[Board "188"]

1. e4 {[%clk 0:03:00]}  c5 {[%clk 0:02:41]} 2. Nf3 {[%clk 0:03:01]}  e6 {[%clk 0:02:41]} 3. d4 {[%clk 0:03:01]}  cxd4 {[%clk 0:02:41]} 4. Nxd4 {[%clk 0:03:02]}  a6 {[%clk 0:02:41]} 5. Bd3 {[%clk 0:03:01]}  Ne7 {[%clk 0:02:40]} 6. O-O {[%clk 0:02:56]}  Nbc6 {[%clk 0:02:41]} 7. c3 {[%clk 0:02:55]}  d5 {[%clk 0:02:38]} 8. exd5 {[%clk 0:02:54]}  Nxd4 {[%clk 0:02:38]} 9. cxd4 {[%clk 0:02:53]}  Nxd5 {[%clk 0:02:38]} 10. Nc3 {[%clk 0:02:53]}  Be7 {[%clk 0:02:32]} 11. Be4 {[%clk 0:02:44]}  Nxc3 {[%clk 0:02:17]} 12. bxc3 {[%clk 0:02:45]}  O-O {[%clk 0:02:17]} 13. Rb1 {[%clk 0:02:40]}  Rb8 {[%clk 0:02:15]} 14. Bf4 {[%clk 0:02:28]}  Bd6 {[%clk 0:02:14]} 15. Qf3 {[%clk 0:02:20]}  b5 {[%clk 0:01:52]} 16. c4 {[%clk 0:01:47]}  Bxf4 {[%clk 0:01:49]} 17. Qxf4 {[%clk 0:01:48]}  Bb7 {[%clk 0:01:47]} 18. Bxb7 {[%clk 0:01:45]}  Rxb7 {[%clk 0:01:47]} 19. cxb5 {[%clk 0:01:37]}  axb5 {[%clk 0:01:41]} 20. Qe5 {[%clk 0:01:38]}  Qd5 {[%clk 0:01:36]} 21. Qxd5 {[%clk 0:01:35]}  exd5 {[%clk 0:01:36]} 22. Rb4 {[%clk 0:01:32]}  Ra8 {[%clk 0:01:34]} 23. Rc1 {[%clk 0:01:32]}  g6 {[%clk 0:01:28]} 24. Rc2 {[%clk 0:01:32]}  Ra4 {[%clk 0:01:26]} 25. Rcb2 {[%clk 0:01:28]}  Rba7 {[%clk 0:01:17]} 26. Rxb5 {[%clk 0:01:12]}  Rxd4 {[%clk 0:01:16]} 27. g3 {[%clk 0:01:11]}  Kg7 {[%clk 0:01:15]} 28. Rc5 {[%clk 0:01:06]}  h5 {[%clk 0:01:13]} 29. Kg2 {[%clk 0:01:05]}  Rda4 {[%clk 0:01:04]} 30. Rxd5 {[%clk 0:01:03]}  Rxa2 {[%clk 0:01:04]} 31. Rxa2 {[%clk 0:01:04]}  Rxa2 {[%clk 0:01:02]} 32. Rb5 {[%clk 0:01:03]} 1/2-1/2


[Site "https://www.chess.com"]

[Event "Titled Tuesday Blitz July 11 Early 2023"]
[White "Sliwicki, Damian"]
[Black "Onslow, Alfie"]
[WhiteFideId "1127128"]
[BlackFideId "436976"]
[WhiteElo "2486"]
[BlackElo "2240"]
[Result "0-1"]
[Round "2"]
[TimeControl "180+2"]
[Date "2023.07.11"]
[WhiteClock "0:00:12"]
[BlackClock "0:00:55"]
[Board "189"]

1. e4 {[%clk 0:03:00]}  c5 {[%clk 0:02:59]} 2. Nf3 {[%clk 0:03:00]}  Nc6 {[%clk 0:02:59]} 3. d4 {[%clk 0:02:57]}  cxd4 {[%clk 0:03:00]} 4. Nxd4 {[%clk 0:02:56]}  Qc7 {[%clk 0:03:00]} 5. Nc3 {[%clk 0:02:55]}  e6 {[%clk 0:03:00]} 6. g3 {[%clk 0:02:53]}  a6 {[%clk 0:02:58]} 7. Bg2 {[%clk 0:02:52]}  Nf6 {[%clk 0:02:58]} 8. O-O {[%clk 0:02:51]}  Nxd4 {[%clk 0:02:58]} 9. Qxd4 {[%clk 0:02:49]}  Bc5 {[%clk 0:02:58]} 10. Bf4 {[%clk 0:02:48]}  d6 {[%clk 0:02:57]} 11. Qd3 {[%clk 0:02:47]}  h6 {[%clk 0:02:53]} 12. Rad1 {[%clk 0:02:37]}  e5 {[%clk 0:02:53]} 13. Be3 {[%clk 0:02:35]}  Bb4 {[%clk 0:02:52]} 14. Na4 {[%clk 0:02:31]}  Be6 {[%clk 0:02:27]} 15. c3 {[%clk 0:02:13]}  Bc5 {[%clk 0:02:25]} 16. b4 {[%clk 0:01:56]}  Bxe3 {[%clk 0:02:14]} 17. fxe3 {[%clk 0:01:57]}  Bc4 {[%clk 0:02:11]} 18. Qxd6 {[%clk 0:01:53]}  Qxd6 {[%clk 0:02:12]} 19. Rxd6 {[%clk 0:01:53]}  Bxf1 {[%clk 0:02:11]} 20. Kxf1 {[%clk 0:01:54]}  Rd8 {[%clk 0:02:03]} 21. Rb6 {[%clk 0:01:52]}  Rd1+ {[%clk 0:01:57]} 22. Ke2 {[%clk 0:01:49]}  Ra1 {[%clk 0:01:56]} 23. Nc5 {[%clk 0:01:41]}  Rxa2+ {[%clk 0:01:49]} 24. Kf3 {[%clk 0:01:37]}  O-O {[%clk 0:01:44]} 25. Rxb7 {[%clk 0:01:35]}  g5 {[%clk 0:01:43]} 26. g4 {[%clk 0:01:33]}  Rd8 {[%clk 0:01:40]} 27. Kg3 {[%clk 0:01:02]}  Nxg4 {[%clk 0:01:34]} 28. Kxg4 {[%clk 0:01:00]}  Rxg2+ {[%clk 0:01:33]} 29. Kf5 {[%clk 0:01:01]}  Rxh2 {[%clk 0:01:23]} 30. Kxe5 {[%clk 0:00:57]}  Rf2 {[%clk 0:01:19]} 31. Nxa6 {[%clk 0:00:49]}  g4 {[%clk 0:01:18]} 32. Nc7 {[%clk 0:00:32]}  g3 {[%clk 0:01:17]} 33. Nd5 {[%clk 0:00:26]}  g2 {[%clk 0:01:10]} 34. Ne7+ {[%clk 0:00:26]}  Kf8 {[%clk 0:00:57]} 35. Nf5 {[%clk 0:00:12]}  g1=Q {[%clk 0:00:56]} 36. Kf6 {[%clk 0:00:13]}  Qg6+ {[%clk 0:00:54]} 37. Ke5 {[%clk 0:00:12]}  Qe6# {[%clk 0:00:55]} 0-1


[Site "https://www.chess.com"]

[Event "Titled Tuesday Blitz July 11 Early 2023"]
[White "Namitbir Singh Walia"]
[Black "Kopacz, Grzegorz"]
[WhiteFideId "35071068"]
[BlackFideId "1109880"]
[WhiteElo "2483"]
[BlackElo "2235"]
[Result "1-0"]
[Round "2"]
[TimeControl "180+2"]
[Date "2023.07.11"]
[WhiteClock "0:01:01"]
[BlackClock "0:00:16"]
[Board "190"]

1. e4 {[%clk 0:03:00]}  c5 {[%clk 0:02:18]} 2. Nf3 {[%clk 0:03:00]}  g6 {[%clk 0:02:17]} 3. d4 {[%clk 0:02:57]}  cxd4 {[%clk 0:02:17]} 4. c3 {[%clk 0:02:57]}  Nc6 {[%clk 0:02:14]} 5. cxd4 {[%clk 0:02:56]}  d5 {[%clk 0:02:14]} 6. exd5 {[%clk 0:02:49]}  Qxd5 {[%clk 0:02:13]} 7. Nc3 {[%clk 0:02:50]}  Qa5 {[%clk 0:02:12]} 8. Bc4 {[%clk 0:02:45]}  e6 {[%clk 0:02:06]} 9. O-O {[%clk 0:02:41]}  Bg7 {[%clk 0:02:05]} 10. Nb5 {[%clk 0:02:15]}  Nge7 {[%clk 0:01:36]} 11. Nd6+ {[%clk 0:02:05]}  Kf8 {[%clk 0:01:35]} 12. Ng5 {[%clk 0:01:34]}  h6 {[%clk 0:00:45]} 13. Ngxf7 {[%clk 0:01:31]}  Rg8 {[%clk 0:00:44]} 14. Nxc8 {[%clk 0:01:09]}  Rxc8 {[%clk 0:00:27]} 15. Bxe6 {[%clk 0:01:08]}  Bxd4 {[%clk 0:00:20]} 16. Bxh6+ {[%clk 0:01:03]}  Ke8 {[%clk 0:00:16]} 17. Nd6+ {[%clk 0:01:01]} 1-0


[Site "https://www.chess.com"]

[Event "Titled Tuesday Blitz July 11 Early 2023"]
[White "lagarto93"]
[Black "rikchessmx"]
[WhiteElo "2483"]
[BlackElo "2227"]
[Result "1-0"]
[Round "2"]
[TimeControl "180+2"]
[Date "2023.07.11"]
[WhiteClock "0:01:26"]
[BlackClock "0:00:00"]
[Board "191"]

1. d4 {[%clk 0:03:00]}  Nf6 {[%clk 0:02:54]} 2. c4 {[%clk 0:03:00]}  e6 {[%clk 0:02:54]} 3. Nc3 {[%clk 0:03:01]}  d5 {[%clk 0:02:53]} 4. cxd5 {[%clk 0:03:01]}  exd5 {[%clk 0:02:52]} 5. Bg5 {[%clk 0:03:01]}  Nbd7 {[%clk 0:02:51]} 6. e3 {[%clk 0:03:01]}  Be7 {[%clk 0:02:50]} 7. Bd3 {[%clk 0:03:01]}  O-O {[%clk 0:02:44]} 8. Nge2 {[%clk 0:03:02]}  c6 {[%clk 0:02:41]} 9. O-O {[%clk 0:03:00]}  g6 {[%clk 0:02:40]} 10. Qc2 {[%clk 0:02:56]}  Nh5 {[%clk 0:02:37]} 11. Bxe7 {[%clk 0:02:55]}  Qxe7 {[%clk 0:02:37]} 12. Rab1 {[%clk 0:02:54]}  a5 {[%clk 0:02:36]} 13. a3 {[%clk 0:02:54]}  f5 {[%clk 0:02:35]} 14. b4 {[%clk 0:02:53]}  axb4 {[%clk 0:02:35]} 15. axb4 {[%clk 0:02:53]}  b5 {[%clk 0:02:36]} 16. Nf4 {[%clk 0:02:34]}  Nhf6 {[%clk 0:02:06]} 17. Qb3 {[%clk 0:02:15]}  Nb6 {[%clk 0:02:02]} 18. Ra1 {[%clk 0:02:12]}  Bd7 {[%clk 0:01:57]} 19. h3 {[%clk 0:02:01]}  Nc4 {[%clk 0:01:52]} 20. Bxc4 {[%clk 0:01:42]}  dxc4 {[%clk 0:00:08]} 21. Qb2 {[%clk 0:01:41]}  g5 {[%clk 0:00:08]} 22. Nfe2 {[%clk 0:01:39]}  Be6 {[%clk 0:00:08]} 23. Ng3 {[%clk 0:01:33]}  h5 {[%clk 0:00:00]} 24. Qc2 {[%clk 0:01:26]} 1-0


[Site "https://www.chess.com"]

[Event "Titled Tuesday Blitz July 11 Early 2023"]
[White "Ruge, Edison"]
[Black "Camacho Collados, Marcos"]
[WhiteFideId "4401000"]
[BlackFideId "2266237"]
[WhiteElo "2225"]
[BlackElo "2482"]
[Result "0-1"]
[Round "2"]
[TimeControl "180+2"]
[Date "2023.07.11"]
[WhiteClock "0:00:00"]
[BlackClock "0:00:03"]
[Board "192"]

1. e4 {[%clk 0:03:00]}  g6 {[%clk 0:02:55]} 2. d4 {[%clk 0:02:59]}  Bg7 {[%clk 0:02:55]} 3. Nc3 {[%clk 0:03:00]}  a6 {[%clk 0:02:51]} 4. Be2 {[%clk 0:03:00]}  b5 {[%clk 0:02:51]} 5. a3 {[%clk 0:03:00]}  Bb7 {[%clk 0:02:51]} 6. g4 {[%clk 0:03:00]}  c5 {[%clk 0:02:39]} 7. d5 {[%clk 0:02:54]}  d6 {[%clk 0:02:32]} 8. g5 {[%clk 0:02:45]}  Nd7 {[%clk 0:02:26]} 9. Be3 {[%clk 0:02:42]}  h6 {[%clk 0:02:12]} 10. f4 {[%clk 0:02:35]}  hxg5 {[%clk 0:02:12]} 11. fxg5 {[%clk 0:02:35]}  Ne5 {[%clk 0:02:02]} 12. Nf3 {[%clk 0:02:31]}  Rh3 {[%clk 0:02:00]} 13. Bf4 {[%clk 0:02:04]}  Nxf3+ {[%clk 0:01:28]} 14. Bxf3 {[%clk 0:02:03]}  Qa5 {[%clk 0:01:25]} 15. Bd2 {[%clk 0:01:49]}  c4 {[%clk 0:01:18]} 16. Bg4 {[%clk 0:01:46]}  Rxc3 {[%clk 0:01:11]} 17. bxc3 {[%clk 0:01:39]}  Bxc3 {[%clk 0:01:12]} 18. Bxc3 {[%clk 0:01:16]}  Qxc3+ {[%clk 0:01:12]} 19. Ke2 {[%clk 0:01:17]}  Qe5 {[%clk 0:01:09]} 20. Kf3 {[%clk 0:00:54]}  f5 {[%clk 0:01:03]} 21. gxf6 {[%clk 0:00:36]}  Nxf6 {[%clk 0:01:01]} 22. Re1 {[%clk 0:00:30]}  Nxg4 {[%clk 0:00:41]} 23. Kxg4 {[%clk 0:00:30]}  O-O-O {[%clk 0:00:34]} 24. Qd2 {[%clk 0:00:16]}  Rh8 {[%clk 0:00:28]} 25. h4 {[%clk 0:00:08]}  Kb8 {[%clk 0:00:18]} 26. Qg5 {[%clk 0:00:07]}  Bc8+ {[%clk 0:00:17]} 27. Kf3 {[%clk 0:00:08]}  Qc3+ {[%clk 0:00:09]} 28. Qe3 {[%clk 0:00:06]}  Rf8+ {[%clk 0:00:05]} 29. Kg2 {[%clk 0:00:06]}  Qxc2+ {[%clk 0:00:05]} 30. Re2 {[%clk 0:00:06]}  Qa4 {[%clk 0:00:04]} 31. Qb6+ {[%clk 0:00:06]}  Bb7 {[%clk 0:00:04]} 32. Rf1 {[%clk 0:00:03]}  Rxf1 {[%clk 0:00:04]} 33. Kxf1 {[%clk 0:00:04]}  c3 {[%clk 0:00:04]} 34. Rf2 {[%clk 0:00:02]}  Qc4+ {[%clk 0:00:04]} 35. Kg2 {[%clk 0:00:02]}  Qc7 {[%clk 0:00:05]} 36. Rf8+ {[%clk 0:00:00]}  Qc8 {[%clk 0:00:03]} 0-1


[Site "https://www.chess.com"]

[Event "Titled Tuesday Blitz July 11 Early 2023"]
[White "Thiel, Thomas"]
[Black "Herman, Matthew"]
[WhiteFideId "4615964"]
[BlackFideId "2028964"]
[WhiteElo "2203"]
[BlackElo "2479"]
[Result "1-0"]
[Round "2"]
[TimeControl "180+2"]
[Date "2023.07.11"]
[WhiteClock "0:01:42"]
[BlackClock "0:00:00"]
[Board "195"]

1. e4 {[%clk 0:02:53]}  c5 {[%clk 0:02:58]} 2. Nc3 {[%clk 0:02:51]}  a6 {[%clk 0:02:57]} 3. Nge2 {[%clk 0:02:50]}  e6 {[%clk 0:02:57]} 4. g3 {[%clk 0:02:49]}  b5 {[%clk 0:02:57]} 5. Bg2 {[%clk 0:02:49]}  Bb7 {[%clk 0:02:57]} 6. d4 {[%clk 0:02:48]}  cxd4 {[%clk 0:02:56]} 7. Nxd4 {[%clk 0:02:49]}  Nc6 {[%clk 0:02:55]} 8. O-O {[%clk 0:02:48]}  Nxd4 {[%clk 0:02:44]} 9. Qxd4 {[%clk 0:02:46]}  f6 {[%clk 0:02:45]} 10. Re1 {[%clk 0:02:44]}  Ne7 {[%clk 0:02:39]} 11. a4 {[%clk 0:02:39]}  Nc6 {[%clk 0:02:32]} 12. Qd1 {[%clk 0:02:35]}  b4 {[%clk 0:02:05]} 13. Ne2 {[%clk 0:02:34]}  Bc5 {[%clk 0:02:01]} 14. Bf4 {[%clk 0:02:30]}  Qb6 {[%clk 0:01:56]} 15. Rf1 {[%clk 0:02:27]}  Ne5 {[%clk 0:01:29]} 16. a5 {[%clk 0:02:22]}  Qa7 {[%clk 0:01:28]} 17. Nc1 {[%clk 0:02:16]}  Bd4 {[%clk 0:00:35]} 18. Rb1 {[%clk 0:02:12]}  Ng6 {[%clk 0:00:16]} 19. Qh5 {[%clk 0:02:07]}  Be5 {[%clk 0:00:07]} 20. Bd2 {[%clk 0:02:05]}  Qc5 {[%clk 0:00:04]} 21. Nd3 {[%clk 0:01:53]}  Qxc2 {[%clk 0:00:04]} 22. Nxe5 {[%clk 0:01:52]}  fxe5 {[%clk 0:00:04]} 23. Bxb4 {[%clk 0:01:51]}  Bxe4 {[%clk 0:00:00]} 24. Rbc1 {[%clk 0:01:42]} 1-0


[Site "https://www.chess.com"]

[Event "Titled Tuesday Blitz July 11 Early 2023"]
[White "Schachpanda_Youtube"]
[Black "Shishkov, Andrei"]
[BlackFideId "4500563"]
[WhiteElo "2198"]
[BlackElo "2478"]
[Result "0-1"]
[Round "2"]
[TimeControl "180+2"]
[Date "2023.07.11"]
[WhiteClock "0:00:02"]
[BlackClock "0:00:13"]
[Board "196"]

1. e4 {[%clk 0:03:00]}  d5 {[%clk 0:03:00]} 2. exd5 {[%clk 0:03:00]}  Nf6 {[%clk 0:03:00]} 3. Nf3 {[%clk 0:02:59]}  Nxd5 {[%clk 0:03:00]} 4. d4 {[%clk 0:03:00]}  Bg4 {[%clk 0:03:00]} 5. c4 {[%clk 0:02:59]}  Nb6 {[%clk 0:03:00]} 6. c5 {[%clk 0:02:59]}  N6d7 {[%clk 0:03:00]} 7. Bc4 {[%clk 0:02:58]}  e6 {[%clk 0:03:00]} 8. Nc3 {[%clk 0:02:57]}  Nc6 {[%clk 0:02:59]} 9. Be3 {[%clk 0:02:55]}  Be7 {[%clk 0:02:55]} 10. h3 {[%clk 0:02:55]}  Bh5 {[%clk 0:02:55]} 11. O-O {[%clk 0:02:44]}  O-O {[%clk 0:02:54]} 12. Ne4 {[%clk 0:02:34]}  Nf6 {[%clk 0:02:50]} 13. Ng3 {[%clk 0:02:32]}  Bxf3 {[%clk 0:02:45]} 14. Qxf3 {[%clk 0:02:32]}  Nxd4 {[%clk 0:02:45]} 15. Qxb7 {[%clk 0:02:13]}  Bxc5 {[%clk 0:02:45]} 16. Rfd1 {[%clk 0:02:07]}  Rb8 {[%clk 0:02:44]} 17. Qa6 {[%clk 0:02:00]}  Rxb2 {[%clk 0:02:32]} 18. Bb3 {[%clk 0:01:39]}  e5 {[%clk 0:02:18]} 19. Qc4 {[%clk 0:01:37]}  Qe7 {[%clk 0:01:37]} 20. Rac1 {[%clk 0:01:21]}  Nxb3 {[%clk 0:01:19]} 21. Bxc5 {[%clk 0:01:09]}  Nxc5 {[%clk 0:01:15]} 22. Qxc5 {[%clk 0:01:09]}  Qxc5 {[%clk 0:01:11]} 23. Rxc5 {[%clk 0:01:09]}  Rxa2 {[%clk 0:01:10]} 24. Rxc7 {[%clk 0:01:07]}  Re8 {[%clk 0:01:04]} 25. Nf5 {[%clk 0:01:02]}  Kf8 {[%clk 0:00:45]} 26. g4 {[%clk 0:00:57]}  g6 {[%clk 0:00:34]} 27. g5 {[%clk 0:00:49]}  gxf5 {[%clk 0:00:24]} 28. gxf6 {[%clk 0:00:49]}  Ra6 {[%clk 0:00:24]} 29. Rdd7 {[%clk 0:00:41]}  Rxf6 {[%clk 0:00:24]} 30. Rxa7 {[%clk 0:00:41]}  e4 {[%clk 0:00:19]} 31. Kg2 {[%clk 0:00:39]}  f4 {[%clk 0:00:19]} 32. Ra2 {[%clk 0:00:22]}  Rg6+ {[%clk 0:00:17]} 33. Kf1 {[%clk 0:00:22]}  Rb8 {[%clk 0:00:16]} 34. Ke2 {[%clk 0:00:17]}  Rb3 {[%clk 0:00:14]} 35. Ra8+ {[%clk 0:00:14]}  Kg7 {[%clk 0:00:14]} 36. Raa7 {[%clk 0:00:14]}  f3+ {[%clk 0:00:13]} 37. Kd2 {[%clk 0:00:13]}  Rf6 {[%clk 0:00:13]} 38. Re7 {[%clk 0:00:12]}  Rb2+ {[%clk 0:00:13]} 39. Ke3 {[%clk 0:00:13]}  Re2+ {[%clk 0:00:14]} 40. Kd4 {[%clk 0:00:11]}  e3 {[%clk 0:00:14]} 41. Rxe3 {[%clk 0:00:11]}  Rxf2 {[%clk 0:00:14]} 42. Ra5 {[%clk 0:00:10]}  Rg2 {[%clk 0:00:14]} 43. Raa3 {[%clk 0:00:06]}  f2 {[%clk 0:00:14]} 44. Rg3+ {[%clk 0:00:06]}  Rxg3 {[%clk 0:00:13]} 45. Rxg3+ {[%clk 0:00:02]}  Kh6 {[%clk 0:00:13]} 0-1


[Site "https://www.chess.com"]

[Event "Titled Tuesday Blitz July 11 Early 2023"]
[White "Tagliata"]
[Black "Akylbek2021"]
[WhiteElo "2193"]
[BlackElo "2477"]
[Result "0-1"]
[Round "2"]
[TimeControl "180+2"]
[Date "2023.07.11"]
[WhiteClock "0:01:16"]
[BlackClock "0:02:07"]
[Board "197"]

1. e4 {[%clk 0:02:55]}  e6 {[%clk 0:03:00]} 2. d4 {[%clk 0:02:55]}  d5 {[%clk 0:03:00]} 3. Nd2 {[%clk 0:02:56]}  Nc6 {[%clk 0:03:00]} 4. Ngf3 {[%clk 0:02:55]}  Nf6 {[%clk 0:03:00]} 5. e5 {[%clk 0:02:53]}  Nd7 {[%clk 0:03:00]} 6. c3 {[%clk 0:02:51]}  f6 {[%clk 0:03:00]} 7. exf6 {[%clk 0:02:49]}  Qxf6 {[%clk 0:03:01]} 8. Bd3 {[%clk 0:02:49]}  Bd6 {[%clk 0:03:01]} 9. Nf1 {[%clk 0:02:44]}  e5 {[%clk 0:02:59]} 10. dxe5 {[%clk 0:02:40]}  Ndxe5 {[%clk 0:03:00]} 11. Nxe5 {[%clk 0:02:39]}  Nxe5 {[%clk 0:03:00]} 12. Be2 {[%clk 0:02:35]}  O-O {[%clk 0:03:00]} 13. Be3 {[%clk 0:02:32]}  c6 {[%clk 0:02:46]} 14. Ng3 {[%clk 0:02:28]}  Be6 {[%clk 0:02:45]} 15. O-O {[%clk 0:02:26]}  g6 {[%clk 0:02:41]} 16. f4 {[%clk 0:02:24]}  Nd7 {[%clk 0:02:35]} 17. Bd4 {[%clk 0:02:21]}  Qh4 {[%clk 0:02:32]} 18. f5 {[%clk 0:02:00]}  gxf5 {[%clk 0:02:32]} 19. Qd3 {[%clk 0:01:56]}  f4 {[%clk 0:02:25]} 20. Nh5 {[%clk 0:01:49]}  f3 {[%clk 0:02:15]} 21. Rxf3 {[%clk 0:01:35]}  Qxh2+ {[%clk 0:02:09]} 22. Kf2 {[%clk 0:01:25]}  Qxh5 {[%clk 0:02:07]} 23. g4 {[%clk 0:01:16]} 0-1


[Site "https://www.chess.com"]

[Event "Titled Tuesday Blitz July 11 Early 2023"]
[White "Jovic, Stanoje"]
[Black "Mishra, Manoj"]
[WhiteFideId "905020"]
[BlackFideId "5006007"]
[WhiteElo "2477"]
[BlackElo "2177"]
[Result "1-0"]
[Round "2"]
[TimeControl "180+2"]
[Date "2023.07.11"]
[WhiteClock "0:00:28"]
[BlackClock "0:00:13"]
[Board "198"]

1. c4 {[%clk 0:03:00]}  Nf6 {[%clk 0:02:58]} 2. g3 {[%clk 0:03:01]}  h5 {[%clk 0:02:51]} 3. h3 {[%clk 0:02:59]}  g6 {[%clk 0:02:47]} 4. Nc3 {[%clk 0:02:58]}  Bg7 {[%clk 0:02:42]} 5. Bg2 {[%clk 0:02:54]}  c5 {[%clk 0:02:41]} 6. Nf3 {[%clk 0:02:52]}  Nc6 {[%clk 0:02:40]} 7. O-O {[%clk 0:02:51]}  d6 {[%clk 0:02:39]} 8. d4 {[%clk 0:02:50]}  h4 {[%clk 0:02:31]} 9. g4 {[%clk 0:02:47]}  Bxg4 {[%clk 0:02:25]} 10. hxg4 {[%clk 0:02:44]}  h3 {[%clk 0:02:25]} 11. Bh1 {[%clk 0:02:40]}  Qd7 {[%clk 0:02:21]} 12. Nh2 {[%clk 0:02:23]}  cxd4 {[%clk 0:01:57]} 13. Nd5 {[%clk 0:02:08]}  Nxg4 {[%clk 0:01:54]} 14. e4 {[%clk 0:01:50]}  Nxh2 {[%clk 0:01:15]} 15. Kxh2 {[%clk 0:01:50]}  Ne5 {[%clk 0:01:14]} 16. Bf3 {[%clk 0:01:34]}  Nxc4 {[%clk 0:01:07]} 17. Bf4 {[%clk 0:01:22]}  e6 {[%clk 0:01:01]} 18. Nb4 {[%clk 0:01:19]}  Nxb2 {[%clk 0:00:50]} 19. Qb3 {[%clk 0:01:15]}  d3 {[%clk 0:00:32]} 20. Nxd3 {[%clk 0:01:09]}  Nxd3 {[%clk 0:00:32]} 21. Qxd3 {[%clk 0:01:09]}  g5 {[%clk 0:00:31]} 22. Bxg5 {[%clk 0:00:59]}  Be5+ {[%clk 0:00:31]} 23. Kh1 {[%clk 0:00:59]}  Rg8 {[%clk 0:00:30]} 24. Be3 {[%clk 0:00:54]}  h2 {[%clk 0:00:25]} 25. Rac1 {[%clk 0:00:47]}  Qe7 {[%clk 0:00:21]} 26. Qb5+ {[%clk 0:00:45]}  Kf8 {[%clk 0:00:21]} 27. Bh6+ {[%clk 0:00:42]}  Rg7 {[%clk 0:00:21]} 28. Bg2 {[%clk 0:00:33]}  Kg8 {[%clk 0:00:20]} 29. Bxg7 {[%clk 0:00:32]}  Kxg7 {[%clk 0:00:20]} 30. f4 {[%clk 0:00:31]}  Bd4 {[%clk 0:00:19]} 31. f5 {[%clk 0:00:31]}  exf5 {[%clk 0:00:18]} 32. Qxf5 {[%clk 0:00:29]}  Rh8 {[%clk 0:00:17]} 33. Qg4+ {[%clk 0:00:28]}  Kf8 {[%clk 0:00:13]} 34. Rc8+ {[%clk 0:00:28]} 1-0


[Site "https://www.chess.com"]

[Event "Titled Tuesday Blitz July 11 Early 2023"]
[White "Dargan, Paul A G"]
[Black "Fernandez Lopez, Ruben"]
[WhiteFideId "416762"]
[BlackFideId "24518298"]
[WhiteElo "2172"]
[BlackElo "2474"]
[Result "0-1"]
[Round "2"]
[TimeControl "180+2"]
[Date "2023.07.11"]
[WhiteClock "0:01:57"]
[BlackClock "0:02:48"]
[Board "199"]

1. e4 {[%clk 0:03:00]}  d5 {[%clk 0:02:57]} 2. exd5 {[%clk 0:03:00]}  Nf6 {[%clk 0:02:58]} 3. Nc3 {[%clk 0:03:01]}  Nxd5 {[%clk 0:02:58]} 4. Qf3 {[%clk 0:03:01]}  Nxc3 {[%clk 0:02:58]} 5. Bc4 {[%clk 0:03:02]}  e6 {[%clk 0:02:58]} 6. bxc3 {[%clk 0:03:00]}  Nc6 {[%clk 0:02:58]} 7. d4 {[%clk 0:03:01]}  Bd6 {[%clk 0:02:58]} 8. Ne2 {[%clk 0:02:59]}  O-O {[%clk 0:02:58]} 9. h4 {[%clk 0:02:58]}  e5 {[%clk 0:02:53]} 10. Be3 {[%clk 0:02:55]}  Qe7 {[%clk 0:02:48]} 11. h5 {[%clk 0:01:57]}  e4 {[%clk 0:02:48]} 0-1


[Site "https://www.chess.com"]